bitfinex/quotes_ETHUSD_20220117
["timestamp","ask_amount","ask_price","bid_price","bid_amount"]
[1642448330329,6.62386531,3225.9,3225.8,0.46372729]
[1642448331833,6.09363164,3225.9,3225.8,0.46372729]
[1642448338097,8.34050189,3225.9,3225.8,0.46372729]
[1642448342135,6.09363164,3225.9,3225.8,0.46372729]
[1642448342339,6.09363164,3225.9,3225.8,3.96934977]
[1642448342737,6.09363164,3225.9,3225.8,4.01386102]
[1642448343335,6.09363164,3225.9,3225.8,17.06386102]
[1642448345786,6.09363164,3225.9,3225.8,18.10556102]
[1642448345987,6.09363164,3225.9,3225.8,20.44853817]
[1642448346987,6.09363164,3225.9,3225.8,18.09987678]
[1642448347188,6.09363164,3225.9,3225.8,19.41318615]
[1642448347388,6.09363164,3225.9,3225.8,22.50078466]
[1642448347592,2.13908417,3225.9,3225.8,22.50078466]
[1642448347787,3.99211928,3227.1,3226.4,1.53543683]
[1642448348032,2.76071928,3227.1,3226.6,0.77461]
[1642448348233,1.42667212,3226.7,3226.6,0.77461]
[1642448348637,2.76071928,3227.1,3226.6,0.77574685]
[1642448348838,6.198,3227.0,3226.6,0.77574685]
[1642448349237,2.28044251,3227.0,3226.6,0.77574685]
[1642448349437,2.09958733,3226.7,3226.6,0.4591799]
[1642448349839,3.20995585,3226.7,3226.6,0.4591799]
[1642448351142,1.11036852,3226.7,3226.6,0.4591799]
[1642448351991,3.20995585,3226.7,3226.6,0.4591799]
[1642448358636,3.20995585,3226.7,3226.6,3.5591799]
[1642448370639,3.20782167,3226.7,3226.6,3.5591799]
[1642448378639,3.20782167,3226.7,3226.6,3.55804305]
[1642448381888,3.20660826,3226.7,3226.6,3.55804305]
[1642448386539,2.09958733,3226.7,3226.6,3.55804305]
[1642448387542,2.09958733,3226.9,3226.6,3.55804305]
[1642448387944,2.09958733,3226.9,3226.8,1.45103585]
[1642448388142,4.38002984,3226.9,3226.8,1.45103585]
[1642448390294,4.38002984,3226.9,3226.8,1.9090789]
[1642448390897,4.38002984,3226.9,3226.8,0.45804305]
[1642448392095,4.38002984,3226.9,3226.8,1.99774829]
[1642448392295,4.38002984,3226.9,3226.8,5.56571748]
[1642448392899,4.38002984,3226.9,3226.8,1.99774829]
[1642448395644,4.38002984,3226.9,3226.8,0.45804305]
[1642448399294,4.37789566,3226.9,3226.8,0.45804305]
[1642448406896,4.32789566,3226.9,3226.8,0.45804305]
[1642448408139,4.85796739,3226.9,3226.8,0.45804305]
[1642448409442,4.32789566,3226.9,3226.8,0.45804305]
[1642448415003,4.85791875,3226.9,3226.8,0.45804305]
[1642448415939,6.14730539,3226.9,3226.8,0.45804305]
[1642448416340,5.6172823,3226.9,3226.8,0.45804305]
[1642448419148,5.61514812,3226.9,3226.8,0.45804305]
[1642448423740,4.32576148,3226.9,3226.8,0.45804305]
[1642448424145,2.28044251,3226.9,3226.8,0.45804305]
[1642448424343,2.28044251,3226.9,3226.8,6.95804305]
[1642448427389,2.28044251,3226.9,3226.8,13.30804305]
[1642448427588,2.28044251,3226.9,3226.8,14.98041638]
[1642448427787,2.28044251,3226.9,3226.8,13.30804305]
[1642448428189,2.28044251,3226.9,3226.8,6.95804305]
[1642448429394,2.28044251,3226.9,3226.8,12.45804305]
[1642448430297,2.28044251,3226.9,3226.8,6.95804305]
[1642448431744,2.28044251,3226.9,3226.8,8.50535747]
[1642448432346,2.28044251,3226.9,3226.8,9.56515747]
[1642448432544,2.28044251,3226.9,3226.8,8.01784305]
[1642448433346,2.28044251,3226.9,3226.8,12.01784305]
[1642448434409,2.28044251,3226.9,3226.8,8.01784305]
[1642448434610,2.28044251,3226.9,3226.8,6.95804305]
[1642448435310,2.28044251,3226.9,3226.8,13.35804305]
[1642448435609,2.28044251,3226.9,3226.8,6.95804305]
[1642448435815,2.28044251,3226.9,3226.8,8.50490152]
[1642448438043,2.28044251,3226.9,3226.8,6.95804305]
[1642448439646,2.2792291,3226.9,3226.8,6.95804305]
[1642448441350,2.2792291,3226.9,3226.8,8.50167973]
[1642448445004,2.2792291,3226.9,3226.8,10.50167973]
[1642448446061,2.2792291,3226.9,3226.8,4.00167973]
[1642448448154,2.2792291,3226.9,3226.8,8.55167973]
[1642448448756,2.2792291,3226.9,3226.8,7.00804305]
[1642448449797,2.2792291,3226.9,3226.8,8.55167973]
[1642448450197,2.2792291,3226.9,3226.8,4.00167973]
[1642448450799,2.2792291,3226.9,3226.8,2.00167973]
[1642448451799,5.86122104,3226.9,3226.8,0.45804305]
[1642448453041,5.86122104,3226.9,3226.8,4.60804305]
[1642448453445,5.86122104,3226.9,3226.8,0.45804305]
[1642448457496,4.6942995,3226.9,3226.8,0.45804305]
[1642448457998,4.6942995,3226.9,3226.8,4.70804305]
[1642448458396,4.6942995,3226.9,3226.8,0.45804305]
[1642448459097,4.69247816,3226.9,3226.8,0.45804305]
[1642448467399,8.47108999,3226.9,3226.8,0.45804305]
[1642448468847,4.69247816,3226.9,3226.8,0.45804305]
[1642448469048,8.40097335,3226.9,3226.8,0.45804305]
[1642448469249,8.33680745,3226.9,3226.8,0.45804305]
[1642448469452,4.69247816,3226.9,3226.8,0.45804305]
[1642448469648,8.45842154,3226.9,3226.8,0.45804305]
[1642448470051,4.69247816,3226.9,3226.8,0.45804305]
[1642448470251,8.39816116,3226.9,3226.8,0.45804305]
[1642448470452,8.41191502,3226.9,3226.8,0.45804305]
[1642448470651,4.69247816,3226.9,3226.8,0.45804305]
[1642448470852,8.37701727,3226.9,3226.8,0.45804305]
[1642448471251,8.31026533,3226.9,3226.8,0.45804305]
[1642448471453,4.69247816,3226.9,3226.8,0.45804305]
[1642448471652,8.3256517,3226.9,3226.8,0.45804305]
[1642448471897,4.69247816,3226.9,3226.8,0.45804305]
[1642448473901,2.27740776,3226.9,3226.8,0.45804305]
[1642448474104,5.93178778,3226.9,3226.8,0.45804305]
[1642448474508,5.93178778,3226.9,3225.9,1.31330937]
[1642448474509,18.6,3226.8,3225.9,1.31330937]
[1642448474709,18.6,3226.8,3225.1,7.64662688]
[1642448474710,0.01214616,3226.0,3225.1,7.64662688]
[1642448474903,0.01214616,3226.0,3225.1,1.95412688]
[1642448474904,7.91263991,3225.2,3225.1,1.95412688]
[1642448475107,3.54044767,3225.2,3225.1,0.09232688]
[1642448475406,17.85,3225.0,3224.6,5.14599752]
[1642448475663,6.5750656,3224.9,3224.6,5.14599752]
[1642448475858,2.72940776,3224.9,3224.6,3.84833442]
[1642448476056,2.72940776,3224.9,3224.5,3.84833442]
[1642448476256,0.53041113,3224.8,3224.5,3.84833442]
[1642448476460,3.95666477,3224.7,3224.5,3.84833442]
[1642448477266,2.72940776,3224.7,3224.5,3.84833442]
[1642448477463,2.27740776,3224.7,3224.5,3.84833442]
[1642448477662,2.27740776,3224.7,3224.2,1.50081856]
[1642448477862,2.27740776,3224.7,3224.1,0.77523]
[1642448478063,2.27740776,3224.7,3224.3,0.00227369]
[1642448480099,2.27740776,3224.7,3224.3,0.77744369]
[1642448480303,2.27740776,3224.7,3224.4,0.0172673]
[1642448480501,2.27740776,3224.7,3224.4,0.00170527]
[1642448480699,2.27740776,3224.7,3224.5,0.00113684]
[1642448480899,2.27740776,3224.7,3224.4,0.00170527]
[1642448481699,2.27740776,3224.7,3224.6,9.87509]
[1642448482098,2.27740776,3224.7,3224.6,10.17509]
[1642448484658,2.27740776,3224.7,3224.6,14.82509]
[1642448485857,2.27740776,3224.7,3224.6,15.82509]
[1642448486061,0.88375055,3226.3,3225.5,0.77489]
[1642448486258,1.25421957,3226.1,3225.5,4.89799]
[1642448486457,0.00738951,3226.0,3225.5,4.89799]
[1642448486658,6.2001,3225.9,3225.5,4.89799]
[1642448486895,6.20692108,3225.9,3225.5,4.89799]
[1642448487098,0.00625266,3225.8,3225.5,4.1231]
[1642448487296,6.2001,3225.7,3225.5,4.1231]
[1642448487496,6.20578424,3225.7,3225.3,1.54973]
[1642448487699,0.00511581,3225.6,3225.2,1.54993]
[1642448487896,6.2001,3225.5,3225.2,3.04525688]
[1642448488100,6.20464739,3225.5,3225.2,3.04525688]
[1642448488301,0.00397897,3225.4,3225.2,3.04525688]
[1642448488704,0.00341054,3225.3,3225.2,3.04525688]
[1642448490654,0.00341054,3225.3,3225.2,8.54525688]
[1642448491454,0.00341054,3225.3,3225.2,11.64525688]
[1642448492453,0.00341054,3225.3,3225.2,6.14525688]
[1642448492655,0.00341054,3225.3,3225.2,4.64993]
[1642448493456,6.2001,3225.5,3225.2,4.64993]
[1642448493457,6.15351054,3225.5,3225.2,4.64993]
[1642448493657,6.15351054,3225.5,3225.4,1.14794617]
[1642448493854,6.10351054,3225.5,3225.4,1.14794617]
[1642448494057,6.10464739,3225.5,3225.4,1.14794617]
[1642448495499,6.10464739,3225.5,3225.2,4.94993]
[1642448495899,6.10464739,3225.5,3225.2,3.4]
[1642448496300,6.05464739,3225.5,3225.2,3.4]
[1642448496702,6.05464739,3225.5,3225.2,4.53042329]
[1642448497801,6.05464739,3225.5,3225.2,5.30535329]
[1642448499049,6.05464739,3225.5,3225.2,4.17493]
[1642448499852,6.05464739,3225.5,3225.2,3.4]
[1642448500051,6.05464739,3225.5,3225.2,3.1]
[1642448500251,6.05251321,3225.5,3225.2,3.1]
[1642448500860,1.2260182,3225.4,3225.2,3.1]
[1642448501058,6.05251321,3225.5,3225.2,3.1]
[1642448507846,6.05251321,3225.5,3225.2,4.37245428]
[1642448508752,6.05251321,3225.5,3225.3,0.77496]
[1642448510106,6.05251321,3225.5,3225.2,5.92226428]
[1642448510304,6.05251321,3225.5,3225.2,3.1]
[1642448512005,6.05251321,3225.5,3225.2,4.2717062]
[1642448512206,6.05251321,3225.5,3225.2,6.5964762]
[1642448512807,6.05251321,3225.5,3225.3,0.7749]
[1642448514457,6.05251321,3225.5,3225.2,5.42477]
[1642448514458,6.05251321,3225.5,3225.2,3.1]
[1642448519902,6.05251321,3225.5,3225.3,0.77496]
[1642448521351,6.05251321,3225.5,3225.3,1.91594822]
[1642448521554,6.05251321,3225.5,3225.3,2.51594822]
[1642448521750,2.6507737,3225.4,3225.3,1.91594822]
[1642448521950,2.6507737,3225.4,3225.3,2.51594822]
[1642448522150,2.6507737,3225.4,3225.3,3.51594822]
[1642448522354,6.05251321,3225.5,3225.3,16.71594822]
[1642448523356,6.05251321,3225.5,3225.3,1.91594822]
[1642448523556,6.05251321,3225.5,3225.3,2.51594822]
[1642448523957,6.05137636,3225.5,3225.3,2.51594822]
[1642448534000,0.53014633,3225.4,3225.3,2.51594822]
[1642448534203,0.53014633,3225.4,3225.3,10.41594822]
[1642448534402,0.53014633,3225.4,3225.3,0.77496]
[1642448535204,0.53014633,3225.4,3225.3,5.87496]
[1642448535646,0.53014633,3225.4,3225.3,0.77496]
[1642448536952,0.53014633,3225.4,3225.2,4.64976]
[1642448537156,0.53014633,3225.4,3225.2,4.94976]
[1642448542605,0.53014633,3225.4,3225.2,3.1]
[1642448542806,4.85,3225.3,3225.2,3.1]
[1642448543051,10.90137636,3225.3,3225.2,3.1]
[1642448543858,11.43152269,3225.3,3225.2,3.1]
[1642448544056,12.63159819,3225.3,3225.2,3.1]
[1642448544462,15.28258305,3225.3,3225.2,3.1]
[1642448544661,10.43258305,3225.3,3225.2,3.1]
[1642448544862,10.43258305,3225.3,3225.2,3.05]
[1642448547812,9.23250755,3225.3,3225.2,3.05]
[1642448550415,13.10375466,3225.3,3225.2,3.05]
[1642448551057,13.98761612,3225.3,3225.2,3.05]
[1642448551457,10.11636901,3225.3,3225.2,3.05]
[1642448552357,9.23250755,3225.3,3225.2,3.05]
[1642448553861,10.11637265,3225.3,3225.2,3.05]
[1642448556831,9.23250755,3225.3,3225.2,3.05]
[1642448559560,10.11630535,3225.3,3225.2,3.05]
[1642448573655,10.11630535,3225.3,3225.2,3.05]
[1642448586007,9.23250755,3225.3,3225.2,3.05]
[1642448588755,10.11631362,3225.3,3225.2,3.05]
[1642448590161,9.23250755,3225.3,3225.2,3.05]
[1642448602516,10.11635622,3225.3,3225.2,3.05]
[1642448603955,9.23250755,3225.3,3225.2,3.05]
[1642448605360,10.11635717,3225.3,3225.2,3.05]
[1642448608003,10.11635717,3225.3,3225.2,3.8051]
[1642448609607,10.11635717,3225.3,3225.2,3.05]
[1642448617911,10.11635717,3225.3,3225.2,3.0]
[1642448620061,10.06635717,3225.3,3225.2,3.0]
[1642448623809,9.18250755,3225.3,3225.2,3.0]
[1642448625208,10.06635726,3225.3,3225.2,3.0]
[1642448640315,10.01635726,3225.3,3225.2,3.0]
[1642448640565,13.87121835,3225.3,3225.2,3.0]
[1642448640954,26.82121835,3225.3,3225.2,3.0]
[1642448642357,30.797604,3225.3,3225.2,3.0]
[1642448642756,17.847604,3225.3,3225.2,3.0]
[1642448643862,23.247604,3225.3,3225.2,3.0]
[1642448644917,20.86053745,3225.3,3225.2,3.0]
[1642448646319,24.8369231,3225.3,3225.2,3.0]
[1642448646719,24.83478892,3225.3,3225.2,3.0]
[1642448647320,19.26908417,3225.3,3225.2,3.0]
[1642448647519,13.86908417,3225.3,3225.2,3.0]
[1642448647721,10.01422308,3225.3,3225.2,3.0]
[1642448649964,10.01422308,3225.3,3225.2,2.63655]
[1642448662817,10.0120889,3225.3,3225.2,2.63655]
[1642448664059,11.60133976,3225.3,3225.2,2.63655]
[1642448664863,10.0120889,3225.3,3225.2,2.63655]
[1642448669518,11.60304205,3225.3,3225.2,2.63655]
[1642448670321,10.0120889,3225.3,3225.2,2.63655]
[1642448672467,10.051999,3225.3,3225.2,2.63655]
[1642448672667,21.222599,3225.3,3225.2,2.63655]
[1642448672871,21.54581045,3225.3,3225.2,2.63655]
[1642448673069,21.54167627,3225.3,3225.2,2.63655]
[1642448674311,25.27136192,3225.3,3225.2,2.63655]
[1642448674516,15.22136192,3225.3,3225.2,2.63655]
[1642448675318,11.24497627,3225.3,3225.2,2.63655]
[1642448675522,10.57703266,3225.3,3225.2,2.63655]
[1642448677624,16.22703266,3225.3,3225.2,2.63655]
[1642448678068,10.57703266,3225.3,3225.2,2.63655]
[1642448678458,10.54060035,3225.3,3225.2,2.63655]
[1642448678658,10.4640889,3225.3,3225.2,2.63655]
[1642448678859,10.0120889,3225.3,3225.2,2.63655]
[1642448679862,11.60303958,3225.3,3225.2,2.63655]
[1642448681062,10.0120889,3225.3,3225.2,2.63655]
[1642448683217,9.8620889,3225.3,3225.2,2.63655]
[1642448684317,13.00573713,3225.3,3225.2,2.63655]
[1642448686362,9.8620889,3225.3,3225.2,2.63655]
[1642448687467,13.00573713,3225.3,3225.2,2.63655]
[1642448688167,9.8620889,3225.3,3225.2,2.63655]
[1642448688370,9.85737472,3225.3,3225.2,2.63655]
[1642448692019,13.00102295,3225.3,3225.2,2.63655]
[1642448698312,9.85737472,3225.3,3225.2,2.63655]
[1642448699615,13.00102295,3225.3,3225.2,2.63655]
[1642448700665,0.78892168,3225.1,3224.4,1.2026]
[1642448700864,5.79239382,3225.0,3224.4,1.2026]
[1642448701065,5.79239382,3225.0,3224.5,0.00454738]
[1642448701663,1.42484772,3224.9,3224.5,0.00454738]
[1642448701863,8.95482724,3224.8,3224.5,0.00454738]
[1642448702065,9.73029424,3224.8,3224.5,0.00454738]
[1642448702264,10.26044057,3224.8,3224.5,0.00454738]
[1642448702666,10.26044057,3224.8,3224.3,0.00568423]
[1642448702863,11.86457499,3224.8,3224.3,0.00568423]
[1642448703068,2.65098486,3224.7,3224.3,0.00568423]
[1642448703267,5.79239382,3224.6,3224.3,0.00568423]
[1642448704170,2.38705641,3224.5,3224.3,0.00568423]
[1642448704416,5.79239382,3224.4,3224.3,0.00568423]
[1642448704816,7.20638986,3224.4,3224.3,0.00568423]
[1642448706017,9.85737472,3224.4,3224.3,0.00568423]
[1642448708164,9.85524054,3224.4,3224.3,0.00568423]
[1642448709370,10.0291406,3224.4,3224.3,0.00568423]
[1642448709567,10.20304066,3224.4,3224.3,0.00568423]
[1642448712816,9.31919095,3224.4,3224.3,0.00568423]
[1642448714424,11.34185187,3224.4,3224.3,0.00568423]
[1642448715121,11.5,3224.2,3223.9,1.1877]
[1642448715321,0.01708899,3224.0,3223.3,3.9677]
[1642448715577,1.35735134,3223.8,3223.3,3.9677]
[1642448715768,6.24225964,3223.7,3222.4,5.176]
[1642448715967,3.79963352,3223.6,3222.5,4.0787]
[1642448716167,6.24225964,3223.5,3222.5,4.08893162]
[1642448716369,0.452,3223.4,3222.5,4.08893162]
[1642448716568,5.79025964,3223.3,3222.5,4.08893162]
[1642448716772,0.452,3223.2,3222.5,4.08893162]
[1642448716970,5.79025964,3223.1,3222.5,4.08893162]
[1642448717375,5.79025964,3223.1,3222.5,5.58893162]
[1642448717773,5.79025964,3223.1,3222.5,4.08893162]
[1642448717774,5.80374352,3223.0,3222.5,4.08893162]
[1642448717973,5.79025964,3222.9,3222.5,4.08893162]
[1642448718273,0.452,3222.8,3222.5,4.08893162]
[1642448718472,7.71976075,3222.7,3222.5,4.08893162]
[1642448718672,15.852,3222.6,3222.5,4.08893162]
[1642448718871,21.64225964,3222.6,3222.5,4.08893162]
[1642448719071,21.64225964,3222.6,3222.5,0.01023162]
[1642448719319,21.68600697,3222.6,3222.5,0.01023162]
[1642448719519,23.23830697,3222.6,3222.1,0.01250532]
[1642448719721,0.77614,3222.5,3222.2,0.01193689]
[1642448719925,10.92968421,3222.4,3221.8,0.01421059]
[1642448720120,0.7761327,3222.3,3221.8,0.01421059]
[1642448720321,10.92967768,3222.2,3222.1,0.002]
[1642448720522,10.92967768,3222.2,3222.1,0.007]
[1642448720723,10.92967768,3222.2,3222.1,0.01250532]
[1642448720724,10.42967768,3222.2,3222.1,0.01250532]
[1642448721124,22.45357774,3222.2,3221.8,0.01421059]
[1642448721321,8.9,3222.1,3221.4,4.15151059]
[1642448721525,0.7761733,3221.9,3221.4,4.15151059]
[1642448721723,9.96217959,3221.8,3221.5,0.00170527]
[1642448721924,1.16397215,3221.7,3221.5,0.00170527]
[1642448722124,9.99655641,3221.8,3221.5,0.00170527]
[1642448722125,5.79025964,3221.6,3221.5,0.00170527]
[1642448722324,2.69025964,3221.6,3221.5,0.00170527]
[1642448723967,2.38018214,3221.6,3221.5,0.00170527]
[1642448724370,5.03440423,3221.6,3221.5,0.00170527]
[1642448725273,6.03440423,3221.6,3221.5,0.00170527]
[1642448726273,6.20830429,3221.6,3221.5,0.00170527]
[1642448726473,6.38220435,3221.6,3221.5,0.00170527]
[1642448728721,5.38220435,3221.6,3221.5,0.00170527]
[1642448731771,5.38220435,3221.6,3221.5,0.93920527]
[1642448731971,5.38220435,3221.6,3221.5,13.83920527]
[1642448732370,5.38220435,3221.6,3221.5,14.61506527]
[1642448733772,5.38220435,3221.6,3221.5,18.29831418]
[1642448733972,5.38220435,3221.6,3221.5,24.44831418]
[1642448734172,5.38220435,3221.6,3221.5,18.24831418]
[1642448735720,5.38220435,3221.6,3221.5,1.66506527]
[1642448735918,5.38220435,3221.6,3221.4,8.50138137]
[1642448735919,5.38220435,3221.6,3221.4,5.96377137]
[1642448736317,5.20830429,3221.6,3221.4,5.96377137]
[1642448736517,5.03440423,3221.6,3221.4,5.96377137]
[1642448736718,0.34780012,3221.5,3221.4,5.96377137]
[1642448736919,0.34780012,3221.5,3221.4,6.73963137]
[1642448737118,0.34780012,3221.5,3221.4,2.58812078]
[1642448737919,0.34780012,3221.5,3221.4,13.63812078]
[1642448738668,0.34780012,3221.5,3221.4,17.31590383]
[1642448738867,2.38018214,3221.6,3221.5,16.45]
[1642448739064,2.38018214,3221.6,3221.5,18.00139]
[1642448739870,0.00170527,3222.1,3221.6,19.05]
[1642448740072,0.00170527,3222.1,3222.0,19.0626819]
[1642448740272,1.58193078,3222.6,3222.0,21.96222486]
[1642448740471,1.58193078,3222.6,3222.1,4.1620193]
[1642448740672,0.00568424,3222.5,3222.1,4.1620193]
[1642448741072,0.00511581,3222.4,3222.1,4.1620193]
[1642448741277,0.00511581,3222.4,3222.0,1.5638719]
[1642448741478,0.00454739,3222.3,3222.1,0.77561]
[1642448741674,0.00454739,3222.3,3222.0,1.5638719]
[1642448741921,0.00397897,3222.2,3222.0,1.5638719]
[1642448742120,0.00397897,3222.2,3222.1,11.79267893]
[1642448742321,1.2774299,3222.8,3222.3,0.7756]
[1642448742621,12.4126,3222.7,3222.3,1.55123]
[1642448742823,12.41942108,3222.7,3222.3,1.55123]
[1642448743023,0.00625266,3222.6,3222.3,1.55123]
[1642448743221,6.2063,3222.5,3222.3,1.55123]
[1642448743426,6.21198424,3222.5,3222.4,6.50115]
[1642448743623,6.2063,3222.5,3222.4,1.55115]
[1642448744826,6.2063,3222.5,3222.4,6.30115]
[1642448745229,6.2063,3222.5,3222.4,9.8489411]
[1642448745670,6.20416582,3222.5,3222.4,9.8489411]
[1642448745869,6.20416582,3222.5,3222.4,5.0989411]
[1642448746267,6.20416582,3222.5,3222.4,1.55115]
[1642448746671,6.20416582,3222.5,3222.3,1.55123]
[1642448747068,0.00511581,3222.4,3222.3,1.55123]
[1642448748772,0.00511581,3222.4,3222.3,9.20123]
[1642448750525,6.20416582,3222.5,3222.4,4.3]
[1642448750526,5.43367163,3222.5,3222.4,4.3]
[1642448750724,5.43367163,3222.5,3222.2,2.58764829]
[1642448751726,5.43367163,3222.5,3222.2,3.36328829]
[1642448752024,5.43367163,3222.5,3222.3,3.53153174]
[1642448752224,5.43367163,3222.5,3222.3,4.30711174]
[1642448752424,5.43367163,3222.5,3222.3,0.77558]
[1642448753080,5.43367163,3222.5,3222.2,3.94188829]
[1642448753275,5.43367163,3222.5,3222.2,2.58764829]
[1642448753675,5.43367163,3222.5,3222.2,1.81206829]
[1642448755378,5.43153745,3222.5,3222.2,1.81206829]
[1642448758422,2.65369847,3222.4,3222.2,1.81206829]
[1642448758622,5.43153745,3222.3,3222.2,1.81206829]
[1642448759022,5.43153745,3222.3,3222.2,1.81320513]
[1642448760325,8.08523592,3222.3,3222.2,1.81320513]
[1642448764421,9.6671667,3222.3,3222.2,1.81320513]
[1642448764624,17.3171667,3222.3,3222.2,1.81320513]
[1642448765223,15.73523592,3222.3,3222.2,1.81320513]
[1642448765824,8.08523592,3222.3,3222.2,1.81320513]
[1642448766628,15.01614532,3222.3,3222.2,1.81320513]
[1642448766825,8.61614532,3222.3,3222.2,1.81320513]
[1642448767224,11.00320173,3222.3,3222.2,1.81320513]
[1642448767924,10.47229233,3222.3,3222.2,1.81320513]
[1642448768169,9.6766628,3222.3,3222.2,1.81320513]
[1642448769173,9.6766628,3222.3,3222.2,1.71320513]
[1642448769371,10.20754554,3222.3,3222.2,1.71320513]
[1642448769872,8.61611866,3222.3,3222.2,1.71320513]
[1642448773927,8.56611866,3222.3,3222.2,1.71320513]
[1642448776571,10.15856748,3222.3,3222.2,1.71320513]
[1642448776771,10.1564333,3222.3,3222.2,1.71320513]
[1642448777172,8.56398448,3222.3,3222.2,1.71320513]
[1642448777772,8.56398448,3222.3,3222.2,1.21320513]
[1642448777972,9.4071523,3222.3,3222.2,1.21320513]
[1642448778172,9.4071523,3222.3,3222.2,0.00113684]
[1642448778571,9.4071523,3222.3,3221.8,0.00341054]
[1642448779425,0.53088274,3222.2,3221.8,0.00341054]
[1642448779629,5.37940327,3222.1,3221.8,0.00341054]
[1642448780628,2.65369847,3222.0,3221.8,0.00341054]
[1642448780826,5.37940327,3221.9,3221.8,0.00341054]
[1642448781428,5.30140327,3221.9,3221.8,0.00341054]
[1642448782230,5.83228601,3221.9,3221.8,0.00341054]
[1642448782829,5.83228601,3221.9,3221.8,0.77920054]
[1642448783877,5.83228601,3221.9,3221.8,4.26008819]
[1642448784077,5.83228601,3221.9,3221.8,0.77920054]
[1642448784275,5.83228601,3221.9,3221.8,8.52920054]
[1642448784475,2.25175185,3222.6,3221.8,8.52920054]
[1642448784476,0.84325544,3222.6,3222.3,1.18088208]
[1642448784675,0.84325544,3222.6,3222.4,0.77562]
[1642448785277,6.2063,3222.7,3222.4,0.77562]
[1642448785475,6.2063,3222.6,3222.4,0.77562]
[1642448785675,6.20743685,3222.6,3222.4,0.77562]
[1642448786823,6.20530267,3222.6,3222.4,0.77562]
[1642448787325,6.20530267,3222.6,3222.5,3.49601632]
[1642448787825,6.20530267,3222.6,3222.4,0.77562]
[1642448789029,6.10530267,3222.6,3222.4,0.77562]
[1642448789531,6.00530267,3222.6,3222.4,0.77562]
[1642448793674,6.00530267,3222.6,3222.5,3.4922031]
[1642448794075,6.00530267,3222.6,3222.5,5.0432531]
[1642448794326,6.00530267,3222.6,3222.5,12.6932531]
[1642448795532,6.00530267,3222.6,3222.5,13.5784531]
[1642448796334,6.00530267,3222.6,3222.5,2.43625]
[1642448796533,6.00530267,3222.6,3222.5,1.55105]
[1642448797135,6.00530267,3222.6,3222.5,12.60105]
[1642448797535,6.00530267,3222.6,3222.5,13.49425]
[1642448797736,6.2063,3222.7,3222.6,10.65]
[1642448798170,6.2063,3222.7,3222.6,15.5]
[1642448798774,6.2063,3222.7,3222.6,10.65]
[1642448798974,6.2063,3222.7,3222.5,3.7625254]
[1642448799174,6.2063,3222.7,3222.5,1.55105]
[1642448799373,6.2063,3222.7,3222.3,1.23931873]
[1642448799574,6.2063,3222.7,3222.2,2.0032]
[1642448799775,6.2063,3222.7,3222.4,0.00113685]
[1642448800074,6.2063,3222.7,3222.3,0.00170527]
[1642448801675,6.20416582,3222.7,3222.3,0.00170527]
[1642448803922,6.20416582,3222.7,3222.2,1.45290527]
[1642448804322,0.00170527,3222.6,3222.2,1.45290527]
[1642448804726,0.00113685,3222.5,3222.3,0.77561]
[1642448808277,6.20316849,3222.7,3222.4,5.4]
[1642448808576,6.20316849,3222.7,3222.5,1.55107]
[1642448810027,6.20316849,3222.7,3222.4,0.77553]
[1642448811830,6.20316849,3222.7,3222.2,3.00411527]
[1642448812031,0.00646252,3222.6,3222.2,3.00411527]
[1642448812229,0.00646252,3222.6,3222.3,0.00113685]
[1642448813579,6.20316849,3222.7,3222.3,0.00113685]
[1642448814381,6.21654857,3222.6,3222.3,0.00113685]
[1642448814781,6.21654857,3222.6,3222.0,0.00284212]
[1642448814782,6.2064,3222.6,3222.0,0.00284212]
[1642448814981,0.53077987,3222.5,3222.0,0.00284212]
[1642448815183,6.2064,3222.4,3222.0,0.00284212]
[1642448818126,1.34110861,3222.1,3222.0,0.00284212]
[1642448818326,7.54750861,3222.1,3222.0,0.00284212]
[1642448818728,7.54750861,3222.1,3221.8,0.00397897]
[1642448818926,6.2064,3222.1,3221.8,0.00397897]
[1642448820328,6.2064,3222.1,3221.9,0.77576]
[1642448820775,6.2064,3222.1,3222.0,0.00284212]
[1642448822983,6.1064,3222.1,3222.0,1.55412212]
[1642448825132,6.1064,3222.1,3222.0,0.00284212]
[1642448825433,6.1064,3222.1,3221.8,0.00397897]
[1642448827533,6.1064,3222.1,3221.7,3.89067897]
[1642448827733,0.00113685,3222.0,3221.7,3.89067897]
[1642448827934,6.1064,3221.9,3221.7,3.89067897]
[1642448828884,2.65392795,3221.8,3221.7,3.89067897]
[1642448829281,2.65392795,3221.8,3221.6,0.7758]
[1642448829685,2.65392795,3221.8,3221.7,0.77577]
[1642448830385,2.65392795,3221.8,3221.4,1.55155]
[1642448830787,2.65392795,3221.8,3221.5,0.00170527]
[1642448831588,2.65392795,3221.8,3221.6,0.77582]
[1642448835138,2.65392795,3221.8,3221.6,1.55159]
[1642448836178,2.65392795,3221.8,3221.7,1.58736701]
[1642448837184,6.1064,3221.9,3221.7,1.58736701]
[1642448838787,6.10426582,3221.9,3221.7,1.58736701]
[1642448844480,2.65409091,3221.8,3221.7,1.58736701]
[1642448847132,8.75835673,3221.8,3221.7,1.58736701]
[1642448858894,9.28922626,3221.8,3221.7,18.07616701]
[1642448860096,9.28922626,3221.8,3221.7,2.57616701]
[1642448860296,8.75835673,3221.8,3221.7,1.58736701]
[1642448865592,6.10426582,3221.8,3221.7,1.58736701]
[1642448865989,11.77525804,3222.7,3222.4,1.20922806]
[1642448866389,0.00454739,3222.6,3222.3,0.77564]
[1642448866791,0.00397897,3222.5,3222.3,0.77564]
[1642448867291,0.00341054,3222.4,3222.3,0.77564]
[1642448867694,0.53420771,3222.4,3222.3,0.77564]
[1642448868494,0.53420771,3222.4,3222.3,1.55128]
[1642448869094,3.18788964,3222.4,3222.3,1.55128]
[1642448869732,0.53420771,3222.4,3222.3,1.55128]
[1642448870531,3.18788964,3222.4,3222.3,1.55128]
[1642448874686,3.18575546,3222.4,3222.3,1.55128]
[1642448875490,3.18575546,3222.4,3221.9,7.15054985]
[1642448875689,3.13575546,3222.4,3221.9,7.15054985]
[1642448875990,0.00284212,3222.3,3221.9,7.15054985]
[1642448876487,0.0022737,3222.2,3222.1,1.58719839]
[1642448876932,0.00284212,3222.2,3222.1,1.58719839]
[1642448880790,6.20984212,3222.2,3222.1,1.58719839]
[1642448882486,8.86352405,3222.2,3222.1,1.58719839]
[1642448895884,9.39439964,3222.2,3222.1,1.58719839]
[1642448899937,9.34439964,3222.2,3222.1,1.58719839]
[1642448900136,9.34439964,3222.2,3222.1,1.58833524]
[1642448903883,9.33613101,3222.2,3222.1,1.58833524]
[1642448912796,19.43613101,3222.2,3222.1,1.58833524]
[1642448913696,10.92708419,3222.2,3222.1,1.58833524]